fUST/lending_fUST_20250628
["ID","MTS","AMOUNT","RATE_DAILY","PERIOD"]
[368275048,1751083843777,-460.0,0.00019726,2]
[368275049,1751083843787,-2231.43,0.00019726,2]
[368275050,1751083843796,-267.13066176,0.00019726,2]
[368275051,1751083843806,-460.0,0.00019726,2]
[368275052,1751083843816,-460.0,0.00019726,2]
[368275053,1751083843826,-1223.58,0.00019726,2]
[368275054,1751083843835,-2133.39,0.00019726,2]
[368275055,1751083843845,-460.0,0.00019726,2]
[368275056,1751083843854,-1782.38,0.00019726,2]
[368275057,1751083843863,-252.05293376,0.00019726,2]
[368275058,1751083843873,-460.0,0.00019726,2]
[368275059,1751083843883,-460.0,0.00019726,2]
[368275060,1751083843892,-460.0,0.00019726,2]
[368275061,1751083843903,-1231.97,0.00019726,2]
[368275062,1751083843912,-523.85,0.00019726,2]
[368275063,1751083843921,-460.0,0.00019726,2]
[368275064,1751083843931,-460.0,0.00019726,2]
[368275065,1751083843940,-460.0,0.00019726,2]
[368275066,1751083843950,-9354.90543724,0.00019728,2]
[368275067,1751083843959,-734.0,0.00019863,2]
[368275068,1751083843969,-420.0,0.00019863,2]
[368275069,1751083843978,-203.79463679,0.00019891,2]
[368275070,1751083843988,-500.0,0.00019999,2]
[368275071,1751083843997,-500.0,0.00019999,2]
[368275072,1751083844007,-500.0,0.00019999,2]
[368275073,1751083844016,-568.19337244,0.00019999,2]
[368275074,1751083844025,-460.0,0.0002,2]
[368275075,1751083844035,-460.0,0.0002,2]
[368275076,1751083844044,-4429.0,0.0002,2]
[368275077,1751083844053,-460.0,0.0002,2]
[368275078,1751083844063,-460.0026114,0.0002,2]
[368275079,1751083844072,-460.0,0.0002,2]
[368275080,1751083844084,-460.0,0.0002,2]
[368275081,1751083844093,-460.0,0.0002,2]
[368275082,1751083844102,-460.0,0.0002,2]
[368275083,1751083844112,-460.0,0.0002,2]
[368275084,1751083844125,-460.0,0.0002,2]
[368275085,1751083844135,-460.0,0.0002,2]
[368275086,1751083844146,-460.0,0.0002,2]
[368275087,1751083844155,-460.0,0.0002,2]
[368275088,1751083844167,-460.0,0.0002,2]
[368275089,1751083844176,-460.0,0.0002,2]
[368275090,1751083844185,-460.0,0.0002,2]
[368275091,1751083844196,-460.0,0.0002,2]
[368275092,1751083844206,-690.39,0.0002,2]
[368275093,1751083844217,-460.0,0.0002,2]
[368275094,1751083844227,-460.0,0.0002,2]
[368275095,1751083844238,-460.0,0.0002,2]
[368275096,1751083844248,-460.0,0.0002,2]
[368275097,1751083844258,-460.0,0.0002,2]
[368275098,1751083844267,-6894.0,0.0002,2]
[368275099,1751083844276,-897.76,0.0002,2]
[368275100,1751083844286,-460.0,0.0002,2]
[368275101,1751083844295,-460.0,0.0002,2]
[368275102,1751083844305,-460.0,0.0002,2]
[368275103,1751083844315,-460.0,0.0002,2]
[368275104,1751083844324,-460.0,0.0002,2]
[368275105,1751083844334,-460.0,0.0002,2]
[368275106,1751083844344,-460.0,0.0002,2]
[368275107,1751083844353,-460.0,0.0002,2]
[368275108,1751083844364,-460.0,0.0002,2]
[368275109,1751083844374,-471.28283923,0.0002,2]
[368275110,1751083844383,-460.0,0.0002,2]
[368275111,1751083844393,-460.0,0.0002,2]
[368275112,1751083844403,-460.0,0.0002,2]
[368275113,1751083844412,-460.0,0.0002,2]
[368275114,1751083844422,-460.0,0.0002,2]
[368275115,1751083844431,-473.23329865,0.0002,2]
[368275116,1751083844441,-460.0,0.0002,2]
[368275117,1751083844450,-219.4867096,0.0002,2]
[368275118,1751083844460,-948.73,0.0002,2]
[368275119,1751083844469,-206.99051486,0.0002,2]
[368275120,1751083844479,-467.72305855,0.0002,2]
[368275121,1751083844488,-460.0,0.0002,2]
[368275122,1751083844498,-466.05199688,0.0002,2]
[368275123,1751083844507,-460.0,0.0002,2]
[368275124,1751083844516,-460.0,0.0002,2]
[368275125,1751083844526,-460.0,0.0002,2]
[368275126,1751083844535,-460.0,0.0002,2]
[368275127,1751083844544,-460.0,0.0002,2]
[368275128,1751083844554,-460.0,0.0002,2]
[368275129,1751083844564,-460.0,0.0002,2]
[368275130,1751083844573,-474.42,0.0002,2]
[368275131,1751083844583,-3462.2,0.0002,2]
[368275132,1751083844593,-460.0,0.0002,2]
[368275133,1751083844602,-2755.69,0.0002,2]
[368275134,1751083844612,-460.0,0.0002,2]
[368275135,1751083844621,-608.2,0.0002,2]
[368275136,1751083844631,-460.0,0.0002,2]
[368275137,1751083844640,-460.0,0.0002,2]
[368275138,1751083844650,-360.0,0.0002,2]
[368275139,1751083844660,-460.0,0.0002,2]
[368275140,1751083844669,-460.0,0.0002,2]
[368275141,1751083844679,-3033.82,0.0002,2]
[368275142,1751083844688,-160.0,0.0002,3]
[368275143,1751083844698,-460.0,0.0002,2]
[368275144,1751083844707,-460.0,0.0002,2]
[368275145,1751083844717,-460.0,0.0002,2]
[368275146,1751083844726,-737.73,0.0002,2]
[368275147,1751083844736,-460.0,0.0002,2]
[368275148,1751083844745,-898.23,0.0002,2]
[368275149,1751083844755,-460.0,0.0002,2]
[368275150,1751083844764,-506.02,0.0002,2]
[368275151,1751083844774,-2624.72,0.0002,2]
[368275152,1751083844784,-612.84,0.0002,2]
[368275153,1751083844794,-493.98,0.0002,2]
[368275154,1751083844803,-460.0,0.0002,2]
[368275155,1751083844813,-501.0,0.0002,2]
[368275156,1751083844823,-460.0,0.0002,2]
[368275157,1751083844832,-486.52,0.0002,2]
[368275158,1751083844841,-617.9,0.0002,2]
[368275159,1751083844851,-460.0,0.0002,2]
[368275160,1751083844860,-460.0,0.0002,2]
[368275161,1751083844869,-460.0,0.0002,2]
[368275162,1751083844879,-3388.35,0.0002,2]
[368275163,1751083844888,-529.12,0.0002,2]
[368275164,1751083844898,-558.58,0.0002,2]
[368275165,1751083844907,-460.0,0.0002,2]
[368275166,1751083844917,-1259.06,0.0002,2]
[368275167,1751083844927,-460.0,0.0002,2]
[368275168,1751083844937,-460.0,0.0002,2]
[368275169,1751083844948,-460.0,0.0002,2]
[368275170,1751083844957,-584.15,0.0002,2]
[368275171,1751083844967,-2605.1,0.0002,2]
[368275172,1751083844978,-934.8,0.0002,2]
[368275173,1751083844987,-554.83,0.0002,2]
[368275174,1751083844997,-460.0,0.0002,2]
[368275175,1751083845007,-460.0,0.0002,2]
[368275176,1751083845017,-460.0,0.0002,2]
[368275177,1751083845026,-2802.87,0.0002,2]
[368275178,1751083845036,-460.0,0.0002,2]
[368275179,1751083845046,-3472.72,0.0002,2]
[368275180,1751083845055,-2124.18,0.0002,2]
[368275181,1751083845065,-4921.64,0.0002,2]
[368275182,1751083845074,-554.07,0.0002,2]
[368275183,1751083845083,-497.39,0.0002,2]
[368275184,1751083845093,-460.0,0.0002,2]
[368275185,1751083845103,-1405.03,0.0002,2]
[368275186,1751083845113,-504.02,0.0002,2]
[368275187,1751083845122,-460.0,0.0002,2]
[368275188,1751083845132,-460.0,0.0002,2]
[368275189,1751083845145,-726.37,0.0002,2]
[368275190,1751083845155,-532.64,0.0002,2]
[368275191,1751083845164,-650.33,0.0002,2]
[368275192,1751083845174,-1747.26,0.0002,2]
[368275193,1751083845183,-460.0,0.0002,2]
[368275194,1751083845192,-1165.28,0.0002,2]
[368275195,1751083845202,-460.0,0.0002,2]
[368275196,1751083845211,-460.0,0.0002,2]
[368275197,1751083845223,-464.54,0.0002,2]
[368275198,1751083845232,-5134.94,0.0002,2]
[368275199,1751083845241,-460.0,0.0002,2]
[368275200,1751083845251,-460.0,0.0002,2]
[368275201,1751083845260,-460.0,0.0002,2]
[368275202,1751083845270,-1018.02,0.0002,2]
[368275203,1751083845385,-929.35,0.0002,2]
[368275204,1751083845394,-2403.87,0.0002,2]
[368275205,1751083845403,-460.0,0.0002,2]
[368275206,1751083845413,-711.06,0.0002,2]
[368275207,1751083845422,-460.0,0.0002,2]
[368275208,1751083845432,-460.0,0.0002,2]
[368275209,1751083845441,-460.0,0.0002,2]
[368275210,1751083845450,-570.68,0.0002,2]
[368275211,1751083845459,-460.0,0.0002,2]
[368275212,1751083845468,-2231.43,0.0002,2]
[368275213,1751083845478,-460.0,0.0002,2]
[368275214,1751083845488,-155.49909398,0.0002,2]
[368275215,1751083845497,-2133.39,0.0002,2]
[368275216,1751083845507,-1223.58,0.0002,2]
[368275217,1751083845516,-1782.38,0.0002,2]
[368275218,1751083845526,-460.0,0.0002,2]
[368275219,1751083845535,-460.0,0.0002,2]
[368275220,1751083845544,-1231.97,0.0002,2]
[368275221,1751083845553,-523.85,0.0002,2]
[368275222,1751083845563,-460.0,0.0002,2]
[368275223,1751083845572,-460.0,0.0002,2]
[368275224,1751083845581,-460.0,0.0002,2]
[368275225,1751083845591,-9354.90543724,0.00020003,2]
[368275226,1751083845600,-847.18566335,0.00020075,2]
[368275227,1751083845609,-160.0,0.00020075,2]
[368275228,1751083845621,-160.0,0.00020075,2]
[368275229,1751083845632,-160.0,0.00020075,2]
[368275230,1751083845642,-214.95397287,0.00020075,2]
[368275231,1751083845652,-160.0,0.00020075,2]
[368275232,1751083845662,-160.0,0.00020075,2]
[368275233,1751083845672,-160.0,0.00020075,2]
[368275234,1751083845682,-12564.78152626,0.00020075,2]
[368275235,1751083845693,-213.78848551,0.00020075,2]
[368275237,1751083845702,-230.28494567,0.00020075,2]
[368275238,1751083845712,-837.06984471,0.00020075,2]
[368275239,1751083845722,-160.0,0.00020076,2]
[368275240,1751083845731,-160.0,0.00020076,2]
[368275241,1751083845741,-3204.00399419,0.00020174,2]
[368275243,1751083845751,-303.145306,0.00020187,2]
[368275244,1751083845761,-151.0,0.000202,3]
[368275245,1751083845771,-1000.0,0.00020215,2]
[368275246,1751083845783,-503.38697079,0.00020259,2]
[368275247,1751083845793,-678.67757898,0.00020268,2]
[368275248,1751083845802,-460.0,0.00020273,2]
[368275249,1751083845812,-460.0,0.00020273,2]
[368275250,1751083845821,-171.74530234,0.00020273,2]
[368275251,1751083845830,-460.0,0.00020273,2]
[368275252,1751083845839,-460.0,0.00020273,2]
[368275253,1751083845849,-460.0,0.00020273,2]
[368275255,1751083845858,-460.0,0.00020273,2]
[368275257,1751083845867,-591.5272404,0.00020273,2]
[368275258,1751083845877,-460.0,0.00020273,2]
[368275259,1751083845886,-460.0,0.00020273,2]
[368275260,1751083845895,-460.0,0.00020273,2]
[368275261,1751083845904,-460.0,0.00020273,2]
[368275263,1751083845914,-460.0,0.00020273,2]
[368275264,1751083845923,-534.57198213,0.00020273,2]
[368275265,1751083845932,-460.0,0.00020273,2]
[368275266,1751083845941,-460.0,0.00020273,2]
[368275267,1751083845950,-690.39,0.00020273,2]
[368275268,1751083845959,-460.0,0.00020273,2]
[368275269,1751083845970,-460.0,0.00020273,2]
[368275270,1751083845979,-460.0,0.00020273,2]
[368275271,1751083845989,-460.0,0.00020273,2]
[368275272,1751083845999,-460.0,0.00020273,2]
[368275273,1751083846008,-897.76,0.00020273,2]
[368275275,1751083846018,-460.0,0.00020273,2]
[368275277,1751083846027,-460.0,0.00020273,2]
[368275278,1751083846036,-460.0,0.00020273,2]
[368275279,1751083846045,-460.0,0.00020273,2]
[368275280,1751083846054,-460.0,0.00020273,2]
[368275281,1751083846064,-460.0,0.00020273,2]
[368275283,1751083846073,-460.0,0.00020273,2]
[368275284,1751083846082,-460.0,0.00020273,2]
[368275285,1751083846091,-460.0,0.00020273,2]
[368275286,1751083846100,-460.0,0.00020273,2]
[368275287,1751083846110,-158.48,0.00020273,2]
[368275288,1751083846119,-534.35,0.00020273,2]
[368275289,1751083846129,-948.73,0.00020273,2]
[368275290,1751083846143,-460.0,0.00020273,2]
[368275291,1751083846153,-460.0,0.00020273,2]
[368275292,1751083846162,-460.0,0.00020273,2]
[368275293,1751083846171,-460.0,0.00020273,2]
[368275294,1751083846181,-460.0,0.00020273,2]
[368275295,1751083846190,-460.0,0.00020273,2]
[368275296,1751083846199,-460.0,0.00020273,2]
[368275297,1751083846208,-460.0,0.00020273,2]
[368275298,1751083846217,-474.42,0.00020273,2]
[368275299,1751083846227,-3462.2,0.00020273,2]
[368275300,1751083846236,-460.0,0.00020273,2]
[368275301,1751083846245,-2755.69,0.00020273,2]
[368275302,1751083846255,-460.0,0.00020273,2]
[368275303,1751083846265,-608.2,0.00020273,2]
[368275304,1751083846274,-460.0,0.00020273,2]
[368275305,1751083846284,-460.0,0.00020273,2]
[368275306,1751083846294,-471.91,0.00020273,2]
[368275307,1751083846304,-3033.82,0.00020273,2]
[368275308,1751083846314,-460.0,0.00020273,2]
[368275309,1751083846323,-460.0,0.00020273,2]
[368275310,1751083846334,-460.0,0.00020273,2]
[368275311,1751083846344,-737.73,0.00020273,2]
[368275312,1751083846353,-460.0,0.00020273,2]
[368275313,1751083846364,-898.23,0.00020273,2]
[368275314,1751083846373,-460.0,0.00020273,2]
[368275315,1751083846382,-506.02,0.00020273,2]
[368275316,1751083846392,-2624.72,0.00020273,2]
[368275317,1751083846402,-612.84,0.00020273,2]
[368275318,1751083846411,-493.98,0.00020273,2]
[368275319,1751083846420,-460.0,0.00020273,2]
[368275320,1751083846430,-501.0,0.00020273,2]
[368275321,1751083846439,-305.77632878,0.00020273,2]
[368275322,1751083846449,-486.52,0.00020273,2]
[368275323,1751083846458,-617.9,0.00020273,2]
[368275324,1751083846468,-460.0,0.00020273,2]
[368275325,1751083846478,-460.0,0.00020273,2]
[368275326,1751083846487,-500.0,0.00020273,2]
[368275327,1751083846496,-3388.35,0.00020273,2]
[368275328,1751083846505,-529.12,0.00020273,2]
[368275329,1751083846515,-558.58,0.00020273,2]
[368275330,1751083846524,-460.0,0.00020273,2]
[368275331,1751083846534,-1259.06,0.00020273,2]
[368275332,1751083846543,-415.743074,0.00020273,2]
[368275333,1751083846552,-460.0,0.00020273,2]
[368275334,1751083846562,-460.0,0.00020273,2]
[368275335,1751083846571,-584.15,0.00020273,2]
[368275336,1751083846581,-2605.1,0.00020273,2]
[368275337,1751083846590,-934.8,0.00020273,2]
[368275338,1751083846600,-554.83,0.00020273,2]
[368275339,1751083846609,-460.0,0.00020273,2]
[368275340,1751083846619,-460.0,0.00020273,2]
[368275341,1751083846629,-460.0,0.00020273,2]
[368275342,1751083846639,-2802.87,0.00020273,2]
[368275343,1751083846648,-460.0,0.00020273,2]
[368275344,1751083846658,-3472.72,0.00020273,2]
[368275345,1751083846668,-2124.18,0.00020273,2]
[368275346,1751083846677,-4921.64,0.00020273,2]
[368275347,1751083846687,-554.07,0.00020273,2]
[368275348,1751083846696,-497.39,0.00020273,2]
[368275349,1751083846706,-460.0,0.00020273,2]
[368275350,1751083846715,-1405.03,0.00020273,2]
[368275351,1751083846727,-504.02,0.00020273,2]
[368275352,1751083846736,-156.55555328,0.00020273,2]
[368275353,1751083846746,-460.0,0.00020273,2]
[368275354,1751083846755,-726.37,0.00020273,2]
[368275355,1751083846765,-532.64,0.00020273,2]
[368275356,1751083846775,-650.33,0.00020273,2]
[368275357,1751083846784,-1747.26,0.00020273,2]
[368275358,1751083846794,-460.0,0.00020273,2]
[368275359,1751083846804,-1165.28,0.00020273,2]
[368275360,1751083846814,-460.0,0.00020273,2]
[368275361,1751083846824,-464.54,0.00020273,2]
[368275362,1751083846833,-5134.94,0.00020273,2]
[368275363,1751083846843,-460.0,0.00020273,2]
[368275364,1751083846852,-460.0,0.00020273,2]
[368275365,1751083846862,-460.0,0.00020273,2]
[368275366,1751083846871,-1018.02,0.00020273,2]
[368275367,1751083846880,-929.35,0.00020273,2]
[368275368,1751083846890,-2403.87,0.00020273,2]
[368275369,1751083846900,-460.0,0.00020273,2]
[368275370,1751083846910,-711.06,0.00020273,2]
[368275371,1751083846919,-547.99322723,0.00020273,2]
[368275372,1751083846928,-460.0,0.00020273,2]
[368275373,1751083846937,-570.68,0.00020273,2]
[368275374,1751083846947,-460.0,0.00020273,2]
[368275375,1751083846957,-2231.43,0.00020273,2]
[368275376,1751083846966,-460.0,0.00020273,2]
[368275377,1751083846976,-2133.39,0.00020273,2]
[368275378,1751083846986,-1223.58,0.00020273,2]
[368275379,1751083846996,-1782.38,0.00020273,2]
[368275380,1751083847005,-460.0,0.00020273,2]
[368275381,1751083847016,-520.9462463,0.00020273,2]
[368275382,1751083847026,-1231.97,0.00020273,2]
[368275383,1751083847036,-523.85,0.00020273,2]
[368275384,1751083847046,-393.04653521,0.00020273,2]
[368275385,1751083847056,-460.0,0.00020273,2]
[368275386,1751083847066,-9354.90543724,0.00020279,3]
[368275387,1751083847075,-160.0,0.00020383,3]
[368275388,1751083847084,-151.0,0.000204,3]
[368275389,1751083847094,-500.0,0.00020412,2]
[368275390,1751083847103,-460.0,0.00020547,2]
[368275391,1751083847113,-460.0,0.00020547,2]
[368275392,1751083847122,-484.0407332,0.00020547,2]
[368275393,1751083847131,-304.96351022,0.00020547,2]
[368275394,1751083847143,-304.96351022,0.00020547,2]
[368275395,1751083847152,-460.0,0.00020547,2]
[368275396,1751083847161,-460.0,0.00020547,2]
[368275397,1751083847171,-460.0,0.00020547,2]
[368275398,1751083847180,-460.0,0.00020547,2]
[368275399,1751083847190,-460.0,0.00020547,2]
[368275400,1751083847199,-460.0,0.00020547,2]
[368275401,1751083847208,-460.0,0.00020547,2]
[368275402,1751083847218,-448.0,0.00020547,2]
[368275403,1751083847228,-460.0,0.00020547,2]
[368275404,1751083847238,-500.0,0.00020547,14]
[368275405,1751083847248,-690.39,0.00020547,2]
[368275406,1751083847257,-460.0,0.00020547,2]
[368275407,1751083847267,-528.85670793,0.00020547,2]
[368275408,1751083847277,-460.0,0.00020547,2]
[368275409,1751083847286,-460.0,0.00020547,2]
[368275410,1751083847296,-460.0,0.00020547,2]
[368275411,1751083847306,-897.76,0.00020547,2]
[368275412,1751083847315,-460.0,0.00020547,2]
[368275413,1751083847324,-460.0,0.00020547,2]
[368275414,1751083847334,-500.0,0.00020547,2]
[368275415,1751083847343,-460.0,0.00020547,2]
[368275416,1751083847353,-460.0,0.00020547,2]
[368275417,1751083847362,-460.0,0.00020547,2]
[368275418,1751083847372,-492.18068525,0.00020547,2]
[368275419,1751083847381,-460.0,0.00020547,2]
[368275420,1751083847390,-460.0,0.00020547,2]
[368275421,1751083847399,-460.0,0.00020547,2]
[368275422,1751083847409,-948.73,0.00020547,2]
[368275423,1751083847418,-469.32341313,0.00020547,2]
[368275424,1751083847427,-466.14377587,0.00020547,2]
[368275425,1751083847437,-460.0,0.00020547,2]
[368275426,1751083847446,-460.0,0.00020547,2]
[368275427,1751083847456,-460.0,0.00020547,2]
[368275428,1751083847465,-601.78491215,0.00020547,2]
[368275429,1751083847475,-460.0,0.00020547,2]
[368275430,1751083847484,-474.42,0.00020547,2]
[368275431,1751083847493,-3462.2,0.00020547,2]
[368275432,1751083847503,-460.0,0.00020547,2]
[368275433,1751083847512,-2755.69,0.00020547,2]
[368275434,1751083847521,-460.0,0.00020547,2]
[368275435,1751083847530,-608.2,0.00020547,2]
[368275436,1751083847539,-335.97577338,0.00020547,2]
[368275437,1751083847549,-3033.82,0.00020547,2]
[368275438,1751083847558,-460.0,0.00020547,2]
[368275439,1751083847567,-460.0,0.00020547,2]
[368275440,1751083847577,-460.0,0.00020547,2]
[368275441,1751083847587,-737.73,0.00020547,2]
[368275442,1751083847596,-460.0,0.00020547,2]
[368275443,1751083847605,-898.23,0.00020547,2]
[368275444,1751083847614,-460.0,0.00020547,2]
[368275445,1751083847624,-506.02,0.00020547,2]
[368275446,1751083847633,-2624.72,0.00020547,2]
[368275447,1751083847642,-612.84,0.00020547,2]
[368275448,1751083847652,-493.98,0.00020547,2]
[368275449,1751083847662,-460.0,0.00020547,2]
[368275450,1751083847670,-501.0,0.00020547,2]
[368275451,1751083847679,-486.52,0.00020547,2]
[368275452,1751083847688,-617.9,0.00020547,2]
[368275453,1751083847698,-460.0,0.00020547,2]
[368275454,1751083847707,-460.0,0.00020547,2]
[368275455,1751083847716,-3388.35,0.00020547,2]
[368275456,1751083847725,-529.12,0.00020547,2]
[368275457,1751083847735,-558.58,0.00020547,2]
[368275458,1751083847744,-460.0,0.00020547,2]
[368275459,1751083847754,-1259.06,0.00020547,2]
[368275460,1751083847763,-460.0,0.00020547,2]
[368275461,1751083847773,-511.26418467,0.00020547,2]
[368275462,1751083847782,-584.15,0.00020547,2]
[368275463,1751083847792,-2605.1,0.00020547,2]
[368275464,1751083847801,-934.8,0.00020547,2]
[368275465,1751083847810,-554.83,0.00020547,2]
[368275466,1751083847819,-160.0,0.00020547,2]
[368275467,1751083847829,-460.0,0.00020547,2]
[368275468,1751083847838,-201.9969646,0.00020547,2]
[368275469,1751083847847,-2802.87,0.00020547,2]
[368275470,1751083847856,-460.0,0.00020547,2]
[368275471,1751083847866,-3472.72,0.00020547,2]
[368275472,1751083847875,-2124.18,0.00020547,2]
[368275473,1751083847988,-4921.64,0.00020547,2]
[368275474,1751083847998,-554.07,0.00020547,2]
[368275475,1751083848008,-497.39,0.00020547,2]
[368275476,1751083848017,-460.0,0.00020547,2]
[368275477,1751083848027,-1405.03,0.00020547,2]
[368275478,1751083848036,-504.02,0.00020547,2]
[368275479,1751083848046,-460.0,0.00020547,2]
[368275480,1751083848055,-726.37,0.00020547,2]
[368275481,1751083848064,-532.64,0.00020547,2]
[368275482,1751083848074,-650.33,0.00020547,2]
[368275483,1751083848084,-1747.26,0.00020547,2]
[368275484,1751083848093,-434.38021337,0.00020547,2]
[368275485,1751083848103,-1165.28,0.00020547,2]
[368275486,1751083848112,-460.0,0.00020547,2]
[368275487,1751083848122,-464.54,0.00020547,2]
[368275488,1751083848132,-5134.94,0.00020547,2]
[368275489,1751083848145,-460.0,0.00020547,2]
[368275490,1751083848155,-460.0,0.00020547,2]
[368275491,1751083848164,-460.0,0.00020547,2]
[368275492,1751083848174,-1018.02,0.00020547,2]
[368275493,1751083848184,-929.35,0.00020547,2]
[368275494,1751083848194,-2403.87,0.00020547,2]
[368275495,1751083848204,-460.0,0.00020547,2]
[368275496,1751083848215,-711.06,0.00020547,2]
[368275497,1751083848224,-460.0,0.00020547,2]
[368275498,1751083848234,-570.68,0.00020547,2]
[368275499,1751083848243,-460.0,0.00020547,2]
[368275500,1751083848252,-2231.43,0.00020547,2]
[368275501,1751083848261,-460.0,0.00020547,2]
[368275502,1751083848270,-2133.39,0.00020547,2]
[368275503,1751083848280,-1223.58,0.00020547,2]
[368275504,1751083848289,-1782.38,0.00020547,2]
[368275505,1751083848299,-460.0,0.00020547,2]
[368275506,1751083848308,-1231.97,0.00020547,2]
[368275507,1751083848317,-523.85,0.00020547,2]
[368275508,1751083848327,-460.0,0.00020547,2]
[368275509,1751083848336,-160.0,0.00020555,3]
[368275510,1751083848346,-847.18566335,0.00020555,3]
[368275511,1751083848355,-12564.78152626,0.00020555,3]
[368275512,1751083848365,-213.78848551,0.00020555,3]
[368275513,1751083848374,-9354.90543724,0.00020555,3]
[368275514,1751083848384,-25000.0,0.00020573,2]
[368275515,1751083848393,-666.0,0.00020573,2]
[368275516,1751083848402,-9311.42036975,0.00020573,2]
[368275517,1751083848412,-503.93739225,0.00020573,2]
[368275518,1751083848421,-246.59496078,0.00020573,2]
[368275519,1751083848430,-500.0,0.00020573,2]
[368275520,1751083848440,-500.0,0.00020573,2]
[368275521,1751083848450,-5000.0,0.00020573,2]
[368275522,1751083848459,-500.0,0.00020573,2]
[368275523,1751083848468,-500.0,0.00020573,2]
[368275524,1751083848478,-500.0,0.00020573,2]
[368275525,1751083848487,-500.0,0.00020573,2]
[368275526,1751083848496,-500.0,0.00020573,2]
[368275527,1751083848506,-500.0,0.00020573,2]
[368275528,1751083848515,-500.0,0.00020573,2]
[368275529,1751083848524,-500.0,0.00020573,2]
[368275530,1751083848534,-500.0,0.00020573,2]
[368275531,1751083848543,-500.0,0.00020573,2]
[368275532,1751083848552,-500.0,0.00020573,2]
[368275533,1751083848561,-500.0,0.00020573,2]
[368275534,1751083848571,-4167.75715865,0.00020573,2]
[368275535,1751083848581,-500.0,0.00020573,2]
[368275536,1751083848590,-500.0,0.00020573,2]
[368275537,1751083848600,-500.0,0.00020573,2]
[368275538,1751083848609,-500.0,0.00020573,2]
[368275539,1751083848619,-207.4,0.00020573,2]
[368275540,1751083848629,-151.0,0.00020573,2]
[368275541,1751083848638,-151.0,0.00020573,2]
[368275542,1751083848647,-151.0,0.00020573,2]
[368275543,1751083848657,-151.0,0.00020573,2]
[368275544,1751083848666,-151.0,0.00020573,2]
[368275545,1751083848676,-151.0,0.00020573,2]
[368275546,1751083848685,-153.061573,0.00020573,2]
[368275547,1751083848695,-153.061573,0.00020573,2]
[368275548,1751083848704,-437.583507,0.00020573,2]
[368275549,1751083848714,-437.583507,0.00020573,2]
[368275550,1751083848723,-151.237257,0.00020573,2]
[368275551,1751083848732,-151.0,0.00020573,2]
[368275552,1751083848741,-151.0,0.00020573,2]
[368275553,1751083848750,-152.608971,0.00020573,2]
[368275554,1751083848759,-705.006109,0.00020573,2]
[368275555,1751083848769,-705.006109,0.00020573,2]